bitfinex/quotes_BTCUSD_20250115
["timestamp","ask_amount","ask_price","bid_price","bid_amount"]
[1736921871572,0.01808022,97145.0,97144.0,0.92415645]
[1736921871977,0.01808022,97145.0,97144.0,0.91915645]
[1736921872200,0.01908022,97145.0,97144.0,0.92615645]
[1736921872433,0.01908022,97145.0,97144.0,0.92215645]
[1736921872657,0.01808022,97145.0,97144.0,0.91515645]
[1736921872831,0.01808022,97145.0,97144.0,0.92015645]
[1736921872970,0.00194173,97145.0,97144.0,0.92015645]
[1736921873172,0.00194173,97145.0,97144.0,0.91515645]
[1736921873671,0.00294173,97145.0,97144.0,0.92215645]
[1736921873982,0.00294173,97145.0,97144.0,0.92515645]
[1736921874911,0.00294173,97145.0,97144.0,0.92215645]
[1736921875117,0.00194173,97145.0,97144.0,0.91915645]
[1736921875441,0.00194173,97145.0,97144.0,0.92415645]
[1736921875643,0.00194173,97145.0,97144.0,0.91915645]
[1736921876030,0.0190803,97145.0,97144.0,0.92615645]
[1736921876226,0.00194173,97145.0,97144.0,0.91915645]
[1736921876654,0.00194173,97145.0,97144.0,0.92415645]
[1736921876817,0.00194173,97145.0,97144.0,0.91515645]
[1736921877209,0.00194173,97145.0,97144.0,0.91815645]
[1736921878212,0.00294173,97145.0,97144.0,0.92515645]
[1736921878533,0.00194173,97145.0,97144.0,0.91815645]
[1736921878884,0.00194173,97145.0,97144.0,0.92315645]
[1736921879239,0.00194173,97145.0,97144.0,0.91815645]
[1736921879567,0.00294173,97145.0,97144.0,0.92515645]
[1736921879908,0.00294173,97145.0,97144.0,0.91515645]
[1736921879909,0.00194173,97145.0,97144.0,0.91515645]
[1736921880052,0.00194173,97145.0,97144.0,0.91915645]
[1736921880254,0.00194173,97145.0,97144.0,0.92315645]
[1736921880853,0.00194173,97145.0,97144.0,0.91915645]
[1736921881264,0.00194173,97145.0,97144.0,0.92315645]
[1736921881562,0.00194173,97145.0,97144.0,0.91915645]
[1736921881765,0.00294173,97145.0,97144.0,0.92615645]
[1736921881962,0.00194173,97145.0,97144.0,0.91915645]
[1736921882270,0.00194173,97145.0,97144.0,0.70924953]
[1736921882486,0.08304173,97145.0,97144.0,0.4945557]
[1736921882686,0.08304173,97145.0,97144.0,0.4885557]
[1736921882991,0.08304173,97145.0,97144.0,0.4845557]
[1736921883337,0.08404173,97145.0,97144.0,0.4955557]
[1736921883687,0.08404173,97145.0,97144.0,0.4898757]
[1736921883922,0.08404173,97145.0,97144.0,0.4858757]
[1736921884103,0.08404173,97145.0,97144.0,0.4888757]
[1736921885516,0.08404173,97145.0,97144.0,0.4818757]
[1736921885716,0.08304173,97145.0,97144.0,0.4818757]
[1736921885915,0.08304173,97145.0,97144.0,0.4868757]
[1736921886341,0.09918122,97145.0,97144.0,0.4788757]
[1736921886561,0.09918122,97145.0,97144.0,0.4818757]
[1736921887218,0.09918122,97145.0,97144.0,0.4798757]
[1736921887412,0.09918122,97145.0,97144.0,0.4808757]
[1736921887845,0.09918122,97145.0,97144.0,0.4798757]
[1736921888201,0.09918122,97145.0,97144.0,0.4808757]
[1736921888447,0.09918122,97145.0,97144.0,0.4798757]
[1736921888665,0.09918122,97145.0,97144.0,0.4808757]
[1736921889042,0.09918122,97145.0,97144.0,0.4798757]
[1736921889229,0.10018122,97145.0,97144.0,0.4798757]
[1736921889436,0.10018122,97145.0,97144.0,0.4788757]
[1736921889723,0.10018122,97145.0,97144.0,0.4798757]
[1736921890469,0.10018122,97145.0,97144.0,0.4788757]
[1736921890969,0.10018122,97145.0,97144.0,0.47023769]
[1736921891434,0.09918122,97145.0,97144.0,0.46923769]
[1736921891649,0.19778913,97145.0,97144.0,0.30882]
[1736921892815,0.19778913,97145.0,97144.0,0.30982]
[1736921893041,0.18364964,97145.0,97144.0,0.30982]
[1736921893215,0.27608778,97145.0,97144.0,0.30982]
[1736921893581,0.27608778,97145.0,97144.0,0.30882]
[1736921893903,0.23799012,97145.0,97144.0,0.30882]
[1736921894340,0.14555198,97145.0,97144.0,0.30882]
[1736921894583,0.14355198,97145.0,97144.0,0.30882]
[1736921894899,0.14555198,97145.0,97144.0,0.30882]
[1736921896356,0.16169232,97145.0,97144.0,0.30882]
[1736921897241,0.22744448,97145.0,97144.0,0.30882]
[1736921898333,0.25044448,97145.0,97144.0,0.30882]
[1736921899234,0.3546714,97145.0,97144.0,0.30882]
[1736921899440,0.33853106,97145.0,97144.0,0.30882]
[1736921899769,0.66833106,97145.0,97144.0,0.30882]
[1736921900452,0.66833106,97145.0,97144.0,0.23072]
[1736921900666,0.66833106,97145.0,97127.0,0.0008533]
[1736921900667,0.22132325,97128.0,97127.0,0.0008533]
[1736921900869,0.47865017,97128.0,97127.0,0.0008533]
[1736921901019,0.56769629,97128.0,97127.0,0.0008533]
[1736921901817,0.56769629,97128.0,97127.0,0.0018533]
[1736921902016,0.47865017,97128.0,97127.0,0.0028533]
[1736921903278,0.47865017,97128.0,97127.0,0.0008533]
[1736921903480,0.48065017,97128.0,97127.0,0.0008533]
[1736921903683,0.61946453,97128.0,97127.0,0.0008533]
[1736921903842,0.72369145,97128.0,97127.0,0.0008533]
[1736921904045,0.72169145,97128.0,97127.0,0.0008533]
[1736921904241,1.05549145,97128.0,97127.0,0.0008533]
[1736921904798,1.05549145,97128.0,97127.0,0.0018533]
[1736921904799,1.05749145,97128.0,97127.0,0.0018533]
[1736921904932,0.91267709,97128.0,97127.0,0.0008533]
[1736921905154,0.91667709,97128.0,97127.0,0.0008533]
[1736921905912,0.92567709,97128.0,97127.0,0.0018533]
[1736921906438,0.92567709,97128.0,97127.0,0.0008533]
[1736921906439,1.00903296,97128.0,97127.0,0.0008533]
[1736921906972,1.00503296,97128.0,97127.0,0.0008533]
[1736921907360,0.91667709,97128.0,97127.0,0.0008533]
[1736921907916,0.92567709,97128.0,97127.0,0.0018533]
[1736921908139,0.91667709,97128.0,97127.0,0.0008533]
[1736921908313,0.91667709,97128.0,97127.0,0.0018533]
[1736921908513,0.92167709,97128.0,97127.0,0.0018533]
[1736921908745,0.92567709,97128.0,97127.0,0.0018533]
[1736921909248,0.91667709,97128.0,97127.0,0.0008533]
[1736921909669,0.82145017,97128.0,97127.0,0.0018533]
[1736921910085,0.81745017,97128.0,97127.0,0.0018533]
[1736921910458,0.82145017,97128.0,97127.0,0.0018533]
[1736921911356,0.81245017,97128.0,97127.0,0.0008533]
[1736921911862,0.82145017,97128.0,97127.0,0.0018533]
[1736921912038,0.81245017,97128.0,97127.0,0.0008533]
[1736921912472,0.82145017,97128.0,97127.0,0.0018533]
[1736921912848,0.81245017,97128.0,97127.0,0.0008533]
[1736921913232,0.81745017,97128.0,97127.0,0.0018533]
[1736921913795,0.82145017,97128.0,97127.0,0.0018533]
[1736921914336,0.66835017,97128.0,97127.0,0.0018533]
[1736921914586,0.33855017,97128.0,97127.0,0.0018533]
[1736921914938,0.33855017,97128.0,97127.0,0.0008533]
[1736921915168,0.32955017,97128.0,97127.0,0.0008533]
[1736921915363,0.33855017,97128.0,97127.0,0.0018533]
[1736921915569,0.51600331,97128.0,97127.0,0.0018533]
[1736921915768,0.55390331,97128.0,97127.0,0.0008533]
[1736921915944,0.56290331,97128.0,97127.0,0.0018533]
[1736921916146,0.57904766,97128.0,97127.0,0.0018533]
[1736921916351,0.56604766,97128.0,97127.0,0.0008533]
[1736921916578,0.57904766,97128.0,97127.0,0.0018533]
[1736921916967,0.57004766,97128.0,97127.0,0.0008533]
[1736921917176,0.56604766,97128.0,97127.0,0.0008533]
[1736921917536,0.57004766,97128.0,97127.0,0.0008533]
[1736921917910,0.56604766,97128.0,97127.0,0.0008533]
[1736921918113,0.57004766,97128.0,97127.0,0.0008533]
[1736921918294,0.57904766,97128.0,97127.0,0.0018533]
[1736921918713,0.57004766,97128.0,97127.0,0.0008533]
[1736921919084,0.57904766,97128.0,97127.0,0.0018533]
[1736921919287,0.57004766,97128.0,97127.0,0.0008533]
[1736921919510,0.56604766,97128.0,97127.0,0.0008533]
[1736921919692,0.57904766,97128.0,97127.0,0.0018533]
[1736921919892,0.57004766,97128.0,97127.0,0.0008533]
[1736921920299,0.57504766,97128.0,97127.0,0.0018533]
[1736921920633,0.91944128,97128.0,97127.0,0.0018533]
[1736921921037,0.91544128,97128.0,97127.0,0.0018533]
[1736921921438,0.91944128,97128.0,97127.0,0.0018533]
[1736921921644,0.91044128,97128.0,97127.0,0.0008533]
[1736921921831,1.09552709,97128.0,97127.0,0.0008533]
[1736921922024,1.10452709,97128.0,97127.0,0.0018533]
[1736921923178,1.08838274,97128.0,97127.0,0.0018533]
[1736921924292,0.90329693,97128.0,97127.0,0.0018533]
[1736921925447,1.1346542,97128.0,97127.0,0.0018533]
[1736921926674,0.89270331,97128.0,97127.0,0.0018533]
[1736921927013,0.84580331,97128.0,97127.0,0.0018533]
[1736921928196,0.98416856,97128.0,97127.0,0.0018533]
[1736921929540,1.18642359,97128.0,97127.0,0.0018533]
[1736921934534,1.41778086,97128.0,97127.0,0.0018533]
[1736921935482,1.18642359,97128.0,97127.0,0.0018533]
[1736921936039,1.20256878,97128.0,97127.0,0.0018533]
[1736921936241,1.18642359,97128.0,97127.0,0.0018533]
[1736921937127,0.205932,97119.0,97118.0,0.0802791]
[1736921937361,0.33075212,97119.0,97117.0,0.0008534]
[1736921937589,0.10422692,97118.0,97117.0,0.0008534]
[1736921938405,0.11963717,97118.0,97117.0,0.0008534]
[1736921938600,0.11963717,97118.0,97117.0,0.0018534]
[1736921938802,0.11963717,97118.0,97117.0,0.0008534]
[1736921939215,0.12563717,97118.0,97117.0,0.0018534]
[1736921939417,0.19779207,97118.0,97117.0,0.0018534]
[1736921939618,0.33639516,97118.0,97117.0,0.0018534]
[1736921939936,0.33839516,97118.0,97117.0,0.0018534]
[1736921940502,0.28238582,97118.0,97117.0,0.0018534]
[1736921940706,0.4849906,97118.0,97117.0,0.0018534]
[1736921941538,0.8147906,97118.0,97117.0,0.0018534]
[1736921942238,0.79864504,97118.0,97117.0,0.0018534]
[1736921946131,0.81479128,97118.0,97117.0,0.0018534]
[1736921946891,0.9190182,97118.0,97117.0,0.0018534]
[1736921947021,0.90466411,97118.0,97117.0,0.0018534]
[1736921955202,0.80043719,97118.0,97117.0,0.0018534]
[1736921956031,0.81658299,97118.0,97117.0,0.0018534]
[1736921957170,0.80043719,97118.0,97117.0,0.0018534]
[1736921959125,0.9158866,97118.0,97117.0,4e-07]
[1736921959302,1.02011352,97118.0,97117.0,4e-07]
[1736921959465,1.04111995,97118.0,97117.0,4e-07]
[1736921959678,1.16411995,97118.0,97117.0,4e-07]
[1736921960049,1.16411995,97118.0,97108.0,0.0802791]
[1736921960050,0.01541025,97109.0,97108.0,0.0802791]
[1736921960179,0.01541025,97109.0,97100.0,0.0802791]
[1736921960180,0.01541025,97101.0,97100.0,0.0802791]
[1736921960380,0.20599,97092.0,97091.0,0.1605582]
[1736921960649,0.31021692,97092.0,97088.0,0.0801]
[1736921960851,0.205992,97091.0,97088.0,0.0801]
[1736921961352,0.411984,97091.0,97088.0,0.08059542]
[1736921961593,0.75319187,97091.0,97088.0,0.08059542]
[1736921962647,0.23152609,97089.0,97088.0,0.08059542]
[1736921963701,0.205996,97089.0,97088.0,0.08059542]
[1736921963903,0.207996,97089.0,97088.0,0.08059542]
[1736921965028,0.54920387,97089.0,97088.0,0.08059542]
[1736921968749,0.34676402,97089.0,97088.0,0.08059542]
[1736921969929,0.36291302,97089.0,97088.0,0.08059542]
[1736921970550,0.36291302,97089.0,97088.0,0.08144882]
[1736921972763,0.27735899,97089.0,97088.0,0.08144882]
[1736921975092,0.224145,97089.0,97088.0,0.08144882]
[1736921976526,0.207996,97089.0,97088.0,0.08144882]
[1736921980863,0.22414488,97089.0,97088.0,0.08144882]
[1736921985494,0.31659618,97089.0,97088.0,0.08144882]
[1736921986396,0.3004473,97089.0,97088.0,0.08144882]
[1736921986736,0.40467422,97089.0,97088.0,0.08144882]
[1736921988875,0.3004473,97089.0,97088.0,0.08144882]
[1736921989298,0.207996,97089.0,97088.0,0.08144882]
[1736921993297,0.34676402,97089.0,97088.0,0.08144882]
[1736921994504,0.207996,97089.0,97088.0,0.08144882]
[1736921996065,0.56578314,97089.0,97088.0,0.08144882]
[1736921996384,0.65386125,97089.0,97088.0,0.08144882]
[1736921997008,0.65386125,97089.0,97088.0,0.00134882]
[1736921999242,0.6692715,97089.0,97088.0,0.00134882]
[1736922000278,0.56504458,97089.0,97088.0,0.00134882]
[1736922001164,0.6692715,97089.0,97088.0,0.00134882]
[1736922001740,0.7484715,97089.0,97088.0,0.00134882]
[1736922002167,1.0782715,97089.0,97088.0,0.00134882]
[1736922002703,1.35616892,97089.0,97088.0,0.00134882]
[1736922002832,1.46039584,97089.0,97088.0,0.00134882]
[1736922003699,1.49320885,97089.0,97088.0,0.00134882]
[1736922003980,1.82703556,97089.0,97088.0,8.2e-07]
[1736922005133,1.83103556,97089.0,97088.0,8.2e-07]
[1736922005530,1.82903556,97089.0,97088.0,8.2e-07]
[1736922005730,0.22143225,97077.0,97070.0,0.0802791]
[1736922005964,0.40669509,97077.0,97076.0,0.00090304]
[1736922007304,0.32565917,97077.0,97076.0,0.00090304]
[1736922007440,0.66045917,97077.0,97076.0,0.00090304]
[1736922007843,1.0020975,97077.0,97076.0,0.00090304]
[1736922008549,0.9970975,97077.0,97076.0,0.00090304]
[1736922008905,1.0060975,97077.0,97076.0,0.00190304]
[1736922009106,1.11032442,97077.0,97076.0,0.00190304]
[1736922009675,1.10132442,97077.0,97076.0,0.00090304]
[1736922009960,1.11032442,97077.0,97076.0,0.00190304]
[1736922010097,1.10632442,97077.0,97076.0,0.00090304]
[1736922010498,1.11032442,97077.0,97076.0,0.00190304]
[1736922010945,1.0100975,97077.0,97076.0,0.00190304]
[1736922011323,1.0060975,97077.0,97076.0,0.00190304]
[1736922011859,1.0000975,97077.0,97076.0,0.00090304]
[1736922012400,1.0090975,97077.0,97076.0,0.00190304]
[1736922012605,1.0000975,97077.0,97076.0,0.00090304]
[1736922012786,1.11332442,97077.0,97076.0,0.00190304]
[1736922013077,1.10432442,97077.0,97076.0,0.00090304]
[1736922013322,1.10132442,97077.0,97076.0,0.00090304]
[1736922013488,1.10132442,97077.0,97076.0,0.00190304]
[1736922013489,1.23332442,97077.0,97076.0,0.00190304]
[1736922013693,1.28302442,97077.0,97076.0,0.00190304]
[1736922014078,1.46283743,97077.0,97076.0,0.00190304]
[1736922014272,1.52728945,97077.0,97076.0,4e-08]
[1736922014514,0.22148725,97051.0,97050.0,0.1224942]
[1736922014717,0.01541025,97048.0,97047.0,0.0487538]
[1736922014937,0.11963717,97048.0,97047.0,0.04880332]
[1736922015335,0.11963717,97048.0,97047.0,0.00090332]
[1736922016275,0.12463717,97048.0,97047.0,0.00090332]
[1736922016479,0.4612755,97048.0,97047.0,0.00090332]
[1736922016640,0.56550242,97048.0,97047.0,0.00090332]
[1736922016844,0.57050242,97048.0,97047.0,0.00090332]
[1736922017467,0.57350242,97048.0,97047.0,0.00090332]
[1736922017680,0.3241461,97048.0,97047.0,0.00090332]
[1736922017984,0.3211461,97048.0,97047.0,0.00090332]
[1736922018182,0.3181461,97048.0,97047.0,0.00090332]
[1736922018641,0.3251461,97048.0,97047.0,0.00090332]
[1736922018765,0.22586409,97048.0,97047.0,0.00090332]
[1736922019181,0.23286409,97048.0,97047.0,0.00090332]
[1736922019395,0.56266409,97048.0,97047.0,0.00090332]
[1736922020409,0.56066409,97048.0,97047.0,0.00090332]
[1736922020828,0.56366409,97048.0,97047.0,0.00090332]
[1736922021235,0.90102127,97048.0,97047.0,0.00090332]
[1736922022029,0.89402127,97048.0,97047.0,0.00090332]
[1736922022237,0.90202127,97048.0,97047.0,0.00090332]
[1736922022643,0.89702127,97048.0,97047.0,0.00090332]
[1736922022850,0.56466409,97048.0,97047.0,0.00090332]
[1736922023316,0.46043717,97048.0,97047.0,0.00090332]
[1736922025410,0.55258128,97048.0,97047.0,0.00090332]
[1736922025618,0.55258128,97048.0,97047.0,0.07660332]
[1736922025815,0.55258128,97048.0,97047.0,0.12250332]
[1736922026021,0.44835436,97048.0,97047.0,0.12250332]
[1736922026585,0.44535436,97048.0,97047.0,0.12250332]
[1736922026792,0.34521025,97048.0,97047.0,0.12250332]
[1736922026989,0.34621025,97048.0,97047.0,0.12250332]
[1736922027196,0.35121025,97048.0,97047.0,0.12250332]
[1736922028473,0.34621025,97048.0,97047.0,0.12250332]
[1736922028806,0.35021025,97048.0,97047.0,0.12250332]
[1736922029005,0.35121025,97048.0,97047.0,0.12250332]
[1736922031395,0.02141025,97048.0,97047.0,0.12250332]
[1736922032641,0.06476648,97048.0,97047.0,0.12250332]
[1736922034413,0.1689934,97048.0,97047.0,0.12250332]
[1736922034587,0.1639934,97048.0,97047.0,0.00090332]
[1736922034965,0.1689934,97048.0,97047.0,0.00090332]
[1736922035396,0.1679934,97048.0,97047.0,0.00090332]
[1736922035782,0.1689934,97048.0,97047.0,0.00090332]
[1736922039134,0.12563717,97048.0,97047.0,0.00090332]
[1736922042456,0.4666021,97048.0,97047.0,0.00090332]
[1736922043326,0.7964021,97048.0,97047.0,0.00090332]
[1736922043539,0.98109483,97048.0,97047.0,0.00090332]
[1736922045083,0.7964021,97048.0,97047.0,0.00090332]
[1736922045297,0.8915329,97048.0,97047.0,0.00090332]
[1736922045453,0.7964021,97048.0,97047.0,0.00090332]
[1736922052599,1.0734412,97048.0,97047.0,0.00090332]
[1736922055307,0.7964021,97048.0,97047.0,0.00090332]
[1736922058994,0.7954021,97048.0,97047.0,0.00090332]
[1736922059161,0.89962902,97048.0,97047.0,0.00090332]
[1736922059495,1.20890387,97048.0,97047.0,0.00090332]
[1736922059665,1.21490387,97048.0,97047.0,0.00090332]
[1736922059870,1.20690387,97048.0,97047.0,0.00090332]
[1736922060071,1.20890387,97048.0,97047.0,0.00090332]
[1736922060902,0.89662902,97048.0,97047.0,0.00090332]
[1736922061065,0.89462902,97048.0,97047.0,0.00090332]
[1736922061254,0.90362902,97048.0,97047.0,0.00090332]
[1736922061666,0.89462902,97048.0,97047.0,0.00090332]
[1736922061887,0.90362902,97048.0,97047.0,0.00090332]
[1736922062564,0.90662902,97048.0,97047.0,0.00090332]
[1736922063709,0.8024021,97048.0,97047.0,0.00090332]
[1736922067462,0.8185586,97048.0,97047.0,0.00090332]
[1736922067742,0.8024021,97048.0,97047.0,0.00090332]
[1736922070991,0.8185586,97048.0,97047.0,0.00090332]
[1736922073171,0.8024021,97048.0,97047.0,0.00090332]
[1736922073943,0.8024021,97048.0,97047.0,0.08200332]
[1736922074681,0.7934021,97048.0,97047.0,0.08200332]
[1736922074882,0.77799185,97048.0,97047.0,0.08200332]
[1736922075207,0.78599185,97048.0,97047.0,0.08200332]
[1736922075451,0.78299185,97048.0,97047.0,0.08200332]
[1736922075625,0.78599185,97048.0,97047.0,0.08200332]
[1736922075857,0.34396493,97048.0,97047.0,0.08200332]
[1736922076064,0.34396493,97048.0,97047.0,0.13080332]
[1736922076065,0.34096493,97048.0,97047.0,0.13080332]
[1736922076202,0.34696493,97048.0,97047.0,0.14131753]
[1736922076402,0.34896493,97048.0,97047.0,0.14131753]
[1736922077054,0.34696493,97048.0,97047.0,0.14131753]
[1736922077259,0.34696493,97048.0,97047.0,0.14231753]
[1736922077435,0.006,97048.0,97047.0,0.14231753]
[1736922077831,0.13910524,97049.0,97048.0,0.0811]
[1736922078803,0.13910524,97050.0,97048.0,0.0811]
[1736922079794,0.13910524,97050.0,97048.0,0.0821]
[1736922080005,0.09267552,97050.0,97048.0,0.0821]
[1736922080203,0.09267552,97050.0,97048.0,0.0811]
[1736922080506,0.09267552,97050.0,97048.0,0.0821]
[1736922081031,0.09267552,97051.0,97048.0,0.0821]
[1736922081264,0.001,97050.0,97048.0,0.0821]
[1736922081778,0.001,97050.0,97048.0,0.0811]
[1736922081982,0.09267552,97051.0,97048.0,0.0811]
[1736922082189,0.09267552,97052.0,97048.0,0.0821]
[1736922082406,0.001,97051.0,97048.0,0.0821]
[1736922082702,0.09267552,97052.0,97048.0,0.0811]
[1736922083086,0.001,97050.0,97048.0,0.0821]
[1736922084341,0.001,97050.0,97048.0,0.0811]
[1736922084976,0.29874852,97053.0,97048.0,0.0811]
[1736922084977,0.206073,97053.0,97048.0,0.0811]
[1736922085335,0.001,97051.0,97048.0,0.0811]
[1736922085554,0.206073,97053.0,97048.0,0.0811]
[1736922085932,0.001,97050.0,97048.0,0.0811]
[1736922086133,0.206073,97053.0,97048.0,0.0811]
[1736922087164,0.412147,97053.0,97048.0,0.0811]
[1736922087565,0.206079,97050.0,97048.0,0.0811]
[1736922088809,0.207079,97050.0,97048.0,0.0811]
[1736922089697,0.207079,97050.0,97048.0,0.0761]
[1736922090610,0.24348594,97050.0,97048.0,0.0771]
[1736922090788,0.24248594,97050.0,97048.0,0.0771]
[1736922091130,0.24548594,97050.0,97048.0,0.0771]
[1736922091364,0.24248594,97050.0,97048.0,0.0771]
[1736922091544,0.069575,97049.0,97048.0,0.0771]
[1736922091748,0.069575,97049.0,97048.0,0.0761]
[1736922092472,0.21231269,97049.0,97048.0,0.0761]
[1736922092618,0.206083,97048.0,97047.0,0.04970332]
[1736922092820,0.206083,97048.0,97047.0,0.00090332]
[1736922093021,0.32572017,97048.0,97047.0,0.00090332]
[1736922093287,0.42994709,97048.0,97047.0,0.00090332]
[1736922094557,0.43294709,97048.0,97047.0,0.00090332]
[1736922095012,0.42994709,97048.0,97047.0,0.00090332]
[1736922095219,1.05898051,97048.0,97047.0,0.00090332]
[1736922096339,0.78077003,97048.0,97047.0,0.00090332]
[1736922096702,0.78377003,97048.0,97047.0,0.00090332]
[1736922096899,0.3298,97040.0,97029.0,0.0008537]
[1736922097100,0.206104,97038.0,97030.0,0.12254061]
[1736922097301,0.206119,97031.0,97030.0,0.12254061]
[1736922098626,0.34497871,97031.0,97030.0,0.12254061]
[1736922100333,0.34497871,97031.0,97030.0,0.12339461]
[1736922100535,0.44920563,97031.0,97030.0,0.12339461]
[1736922100851,0.45120563,97031.0,97030.0,0.12339461]
[1736922101855,0.45120563,97031.0,97030.0,0.000854]
[1736922104219,0.31234592,97031.0,97030.0,0.000854]
[1736922105262,0.208119,97031.0,97030.0,0.000854]
[1736922108134,0.002,97031.0,97030.0,0.078154]
[1736922108374,0.002,97031.0,97030.0,0.125254]
[1736922109180,0.13885971,97032.0,97030.0,0.125254]
[1736922109387,0.09250028,97035.0,97030.0,0.125254]
[1736922110203,0.10865701,97035.0,97030.0,0.125254]
[1736922110599,0.002,97031.0,97030.0,0.125254]
[1736922111028,0.01615673,97035.0,97030.0,0.125254]
[1736922111226,0.01915673,97035.0,97030.0,0.125254]
[1736922111630,0.01615673,97035.0,97030.0,0.125254]
[1736922111829,0.002,97031.0,97030.0,0.125254]
[1736922112261,0.01615673,97035.0,97030.0,0.125254]
[1736922112401,0.01915673,97035.0,97030.0,0.125254]
[1736922112605,0.22526873,97035.0,97030.0,0.125254]
[1736922113338,0.209112,97035.0,97030.0,0.125254]
[1736922113712,0.206112,97035.0,97030.0,0.125254]
[1736922114123,0.002,97031.0,97030.0,0.125254]
[1736922114330,0.206112,97035.0,97030.0,0.125254]
[1736922114735,0.209112,97035.0,97030.0,0.125254]
[1736922115074,0.206112,97035.0,97030.0,0.125254]
[1736922115246,0.002,97031.0,97030.0,0.125254]
[1736922115746,0.206112,97035.0,97030.0,0.125254]
[1736922115958,0.412224,97035.0,97030.0,0.125254]
[1736922117177,0.51102276,97035.0,97030.0,0.125254]
[1736922117531,0.52717966,97035.0,97030.0,0.125254]
[1736922117891,0.4313809,97035.0,97030.0,0.125254]
[1736922123263,0.415224,97035.0,97030.0,0.125254]
[1736922127427,0.50772428,97035.0,97030.0,0.125254]
[1736922127630,0.52388084,97035.0,97030.0,0.125254]
[1736922128056,0.11165684,97035.0,97031.0,0.0816]
[1736922128296,0.11165684,97035.0,97033.0,0.0459]
[1736922128411,0.11165684,97035.0,97034.0,0.2775]
[1736922128825,0.003,97035.0,97034.0,0.2775]
[1736922129497,0.003,97035.0,97034.0,0.28716203]
[1736922130069,0.003,97035.0,97034.0,0.13716203]
[1736922130734,0.00179362,97038.0,97034.0,0.13716203]
[1736922131307,0.003,97035.0,97034.0,0.13716203]
[1736922131540,0.00179362,97038.0,97034.0,0.13716203]
[1736922132148,0.00179362,97038.0,97034.0,0.13816203]
[1736922132352,0.00179362,97038.0,97034.0,0.1285]
[1736922132559,0.00179362,97038.0,97034.0,0.1275]
[1736922132761,0.00166959,97038.0,97034.0,0.1275]
[1736922133031,0.00166959,97038.0,97034.0,0.1285]
[1736922133990,0.00166959,97038.0,97034.0,0.334612]
[1736922134349,0.00266959,97038.0,97034.0,0.333612]
[1736922134553,0.00166959,97038.0,97034.0,0.334612]
[1736922134955,0.00266959,97038.0,97034.0,0.334612]
[1736922135187,0.00166959,97038.0,97034.0,0.333612]
[1736922135378,0.00166959,97038.0,97034.0,0.334612]
[1736922135886,0.09416987,97038.0,97034.0,0.334612]
[1736922137547,0.09250028,97037.0,97034.0,0.334612]
[1736922137899,0.09250028,97037.0,97034.0,0.1285]
[1736922138468,0.09250028,97037.0,97034.0,0.1275]
[1736922138704,0.09250028,97036.0,97034.0,0.1285]
[1736922139209,0.09250028,97036.0,97034.0,0.1275]
[1736922139740,0.09250028,97036.0,97035.0,0.0096641]
[1736922140149,0.09416987,97038.0,97035.0,0.0096641]
[1736922140759,0.001,97037.0,97035.0,0.0096641]
[1736922140960,0.09416987,97038.0,97035.0,0.0096641]
[1736922141362,0.00166959,97038.0,97035.0,0.001]
[1736922141947,0.00166959,97038.0,97034.0,0.1275]
[1736922142165,0.00166959,97038.0,97035.0,0.001]
[1736922143451,0.00166959,97038.0,97034.0,0.1275]
[1736922143876,0.00166959,97038.0,97035.0,0.001]
[1736922144426,0.00166959,97038.0,97034.0,0.1275]
[1736922144719,0.00166959,97038.0,97034.0,0.1285]
[1736922145222,0.00166959,97038.0,97034.0,0.1275]
[1736922145552,0.00166959,97038.0,97035.0,0.001]
[1736922145736,0.00166959,97038.0,97036.0,0.206109]
[1736922147999,0.00166959,97038.0,97036.0,0.207109]
[1736922148433,0.00166959,97038.0,97036.0,0.206109]
[1736922148685,0.00166959,97038.0,97036.0,0.208109]
[1736922149502,0.09416987,97038.0,97036.0,0.208109]
[1736922152442,0.09416987,97038.0,97036.0,0.517269]
[1736922153884,0.09416987,97038.0,97037.0,0.08]
[1736922154081,0.09416987,97038.0,97037.0,0.1261]
[1736922154258,0.09416987,97038.0,97037.0,0.43526]
[1736922154465,0.00166959,97038.0,97037.0,0.43526]
[1736922154861,0.00166959,97038.0,97037.0,0.58526]
[1736922155067,0.00166959,97038.0,97037.0,0.594927]
[1736922156304,0.00166959,97038.0,97037.0,0.596927]
[1736922158684,0.00166959,97038.0,97037.0,0.61801708]
[1736922160324,0.00166959,97038.0,97037.0,0.596927]
[1736922171256,0.00166959,97038.0,97037.0,0.5977806]
[1736922189162,0.00166959,97038.0,97037.0,0.78659727]
[1736922189370,0.00166959,97038.0,97037.0,0.88659727]
[1736922189786,0.00166959,97038.0,97037.0,0.91681934]
[1736922190203,0.00166959,97038.0,97037.0,0.93981934]
[1736922190401,0.00166959,97038.0,97037.0,0.90959727]
[1736922190952,0.00166959,97038.0,97037.0,0.93214256]
[1736922191113,0.00166959,97038.0,97037.0,0.93314256]
[1736922191612,0.00166959,97038.0,97037.0,0.89993027]
[1736922191816,0.00166959,97038.0,97037.0,0.89793027]
[1736922192051,0.00166959,97038.0,97037.0,0.90293027]
[1736922192264,0.00266959,97038.0,97037.0,0.91359554]
[1736922192726,0.00266959,97038.0,97037.0,0.90859554]
[1736922192875,0.00266959,97038.0,97037.0,0.91359554]
[1736922196305,0.06554341,97050.0,97048.0,0.15]
[1736922196462,0.06554341,97050.0,97048.0,0.45913]
[1736922196858,0.06554341,97050.0,97049.0,0.00966527]
[1736922197063,0.06554341,97050.0,97049.0,0.46878527]
[1736922197713,0.06654341,97050.0,97049.0,0.67486627]
[1736922197877,0.06554341,97050.0,97049.0,0.67486627]
[1736922198279,0.06654341,97050.0,97049.0,0.67586627]
[1736922199101,0.06654341,97050.0,97049.0,0.67886627]
[1736922200302,0.06654341,97050.0,97049.0,0.6892266]
[1736922202268,0.06654341,97050.0,97049.0,0.95814327]
[1736922202676,0.06654341,97050.0,97049.0,1.00394327]
[1736922203104,0.06654341,97050.0,97049.0,1.10394327]
[1736922203304,0.06654341,97050.0,97049.0,1.1473006]
[1736922203502,0.01615326,97065.0,97061.0,0.08458975]
[1736922203705,0.01615326,97065.0,97064.0,0.356049]
[1736922203933,0.01615326,97065.0,97064.0,0.665119]
[1736922204538,0.01615326,97065.0,97064.0,0.67478427]
[1736922204736,0.01615326,97065.0,97064.0,0.67487088]
[1736922205153,0.01615326,97065.0,97064.0,0.67787088]
[1736922205388,0.01615326,97065.0,97064.0,0.68287088]
[1736922206518,0.00179299,97076.0,97072.0,0.206032]
[1736922206712,0.00179299,97076.0,97072.0,0.515082]
[1736922207473,0.00179299,97076.0,97072.0,0.721114]
[1736922207674,0.00179299,97076.0,97075.0,0.15]
[1736922207883,0.00179299,97076.0,97075.0,0.45904]
[1736922208867,0.00179299,97076.0,97075.0,0.46004]
[1736922209408,0.00179299,97076.0,97075.0,0.61126692]
[1736922210179,0.00179299,97076.0,97075.0,0.61026692]